Cogmind - Beta 13 *** ADVENTURER MODE // 2024.03.09 @ 15:31:43 Player: bryce Result: Self-destructed Performance ------------- Evolutions (3) 1500 Regions Visited (5) 1000 Robots Destroyed (20) 100 Value Destroyed (775) 775 Prototype IDs (1) 20 Alien Tech Used (0) 0 Bonus (0) 0 TOTAL SCORE: 3395 Bonus ------- None Cogmind --------- Core Integrity 700/700 Matter 290/300 Energy 310/310 System Corruption 0% Temperature Cool (0) Movement Treading (160) Location -7/Factory Parts ------- > --- POWER (2) -------- Ion Engine Light Nuclear Core > --- PROPULSION (4) --- Light Treads Light Treads Light Treads > --- UTILITY (4) ------ Improved Heat Sink Medium Storage Unit Improved Targeting Computer > --- WEAPON (3) ------- Advanced Beam Cannon Advanced Beam Cannon > --- INVENTORY (10) --- Light Ion Engine Aluminum Leg Aluminum Leg Small Laser Small Laser Particle Gun Advanced Beam Cannon Rocket Launcher Peak State ------------ > --- POWER ------------ Ion Engine Light Nuclear Core > --- PROPULSION ------- Light Treads Light Treads Light Treads > --- UTILITY ---------- Improved Heat Sink Medium Storage Unit Improved Targeting Computer > --- WEAPON ----------- Advanced Beam Cannon Advanced Beam Cannon > --- INVENTORY -------- Light Ion Engine Aluminum Leg Aluminum Leg Small Laser Small Laser Particle Gun Advanced Beam Cannon Rocket Launcher [Rating: 20] Favorites ----------- Power Ion Engine Engine Ion Engine Power Core Light Nuclear Core Propulsion Light Treads Treads Light Treads Leg Aluminum Leg Wheel Compact Wheel Utility Small Storage Unit Device Improved Heat Sink Storage Small Storage Unit Processor Improved Targeting Computer Weapon Advanced Beam Cannon Energy Gun Small Laser Energy Cannon Advanced Beam Cannon Ballistic Gun Assault Rifle Build | -11 -10 -10 -9 -8 -7 ------- Run | Yrd Mat Min Mat Mat Fac Slots Evolved 6 | . . . 2 2 2 Power 1 | . . . 1 . . Propulsion 2 | . . . . 1 1 Utility 2 | . . . 1 . 1 Weapon 1 | . . . . 1 . Parts Attached 18 | 6 1 . 5 6 . Power 3 | 1 . . 1 1 . Engine 2 | 1 . . 1 . . Core 1 | . . . . 1 . Reactor . | . . . . . . Propulsion 7 | 2 . . 4 1 . Treads 3 | . . . 2 1 . Leg 2 | . . . 2 . . Wheel 2 | 2 . . . . . Hover . | . . . . . . Flight . | . . . . . . Utility 4 | 1 . . . 3 . Device 1 | . . . . 1 . Storage 2 | 1 . . . 1 . Processor 1 | . . . . 1 . Hackware . | . . . . . . Protection . | . . . . . . Artifact . | . . . . . . Weapon 4 | 2 1 . . 1 . Energy Gun 1 | 1 . . . . . Energy Cannon 2 | . 1 . . 1 . Ballistic Gun 1 | 1 . . . . . Ballistic Cannon . | . . . . . . Launcher . | . . . . . . Special Weapon . | . . . . . . Impact Weapon . | . . . . . . Slashing Weapon . | . . . . . . Piercing Weapon . | . . . . . . Special Melee Weapon . | . . . . . . Unidentified Prototypes 1 | . 1 . . . . Parts Lost 2 | . . . . 2 . Power 1 | . . . . 1 . Propulsion . | . . . . . . Utility . | . . . . . . Weapon 1 | . . . . 1 . Highest Loss Streak 2 | . . . . 2 . To Critical Strikes . | . . . . . . Average Slot Usage (%) 75 | . 85 85 72 72 76 Engine 14 | . 14 14 17 12 7 Core 2 | . . . . 5 7 Treads 11 | . . . 8 18 23 Wheel 9 | . 28 28 12 . . Device 2 | . . . . 5 7 Storage 10 | . 14 14 11 9 7 Processor 2 | . . . . 4 7 Energy Cannon 13 | . 10 14 11 15 15 Ballistic Gun 7 | . 14 14 11 2 . Naked Turns . | . . . . . . Heaviest Build 29 | 13 16 16 21 29 29 Greatest Support 60 | 32 32 32 40 60 60 Greatest Overweight (x) 6 | 1 . . 6 . . Average Overweight (x) . | . . . . . . Largest Inventory Capacity 10 | 8 8 8 8 10 10 Average Capacity 8 | 6 8 8 8 8 10 Most Carried 9 | 5 8 8 8 9 8 Average Carried 7 | 3 7 8 8 7 8 Final Capacity 10 | 8 8 8 8 10 10 Final Carried 8 | 4 8 8 8 8 8 Class Distribution -------------------- 93% | Mutant 6% | Scavenger-Mutant Dominant Class ---------------- Mutant | -10/Materials Mutant | -10/Mines Mutant | -9/Materials Mutant | -8/Materials Scavenger-Mutant | -7/Factory Resources | -11 -10 -10 -9 -8 -7 ----------- Run | Yrd Mat Min Mat Mat Fac Matter Collected 465 | 240 . 45 25 155 . Remotely . | . . . . . . Salvage Created 898 | . . 47 410 441 . Parts 43 | . . 5 23 15 . Haulers Intercepted 1 | . . . . 1 . Recyclers Shooed . | . . . . . . Parts Field Recycled . | . . . . . . Retrieved Matter . | . . . . . . Parts Self-Destructed . | . . . . . . Prevented . | . . . . . . Kills | -11 -10 -10 -9 -8 -7 ------- Run | Yrd Mat Min Mat Mat Fac Combat Hostiles Destroyed 18 | . . 3 9 6 . Guns 6 | . . 1 2 3 . Cannons 12 | . . 2 7 3 . Classes Destroyed 7 | . . 1 4 2 . Hauler 1 | . . . . 1 . Recycler 1 | . . . . 1 . Swarmer 3 | . . 3 . . . Grunt 12 | . . . 6 6 . Brawler 1 | . . . 1 . . Duelist 1 | . . . 1 . . Sentry 1 | . . . 1 . . Best Kill Streak 4 | . . 3 4 2 . Combat Bots Only 4 | . . 3 4 2 . Max Kills in Single Turn 1 | . . 1 1 1 . Gunslinging . | . . . . . . Exploded . | . . . . . . Melee . | . . . . . . Uniques/NPCs Destroyed . | . . . . . . Combat | -11 -10 -10 -9 -8 -7 -------- Run | Yrd Mat Min Mat Mat Fac Hostile Shots Fired 86 | . . 10 24 52 . Missed 20 | . . 4 6 10 . Damage Taken 817 | . . 40 276 501 . Core 195 | . . 13 88 94 . Absorbed by Shields . | . . . . . . Ignored by Resistances 238 | . . 12 81 145 . Core Remaining (%) 88 | 100 . 94 78 82 . Volleys Fired 49 | . . 5 21 23 . Largest 2 | . . 2 2 2 . Hottest 136 | . . 88 88 136 . Shots Fired 97 | . . 10 42 45 . Gun 35 | . . 5 21 9 . Cannon 62 | . . 5 21 36 . Launcher . | . . . . . . Special . | . . . . . . Kinetic 35 | . . 5 21 9 . Thermal 62 | . . 5 21 36 . Explosive . | . . . . . . Electromagnetic . | . . . . . . Robot Hit Streak 15 | . . 3 15 9 . Robot Miss Streak 4 | . . 1 1 4 . Penetration Max . | . . . . . . Secondary Targets . | . . . . . . Shots Hit Robots 70 | . . 6 31 33 . Core Hits 32 | . . 3 15 14 . Critical Kills . | . . . . . . Critical Parts Destroyed . | . . . . . . Critical Strikes . | . . . . . . Melee Attacks . | . . . . . . Impact . | . . . . . . Slashing . | . . . . . . Piercing . | . . . . . . Sneak Attacks . | . . . . . . Combat Hostiles . | . . . . . . Follow-up Attacks . | . . . . . . Damage Inflicted 1297 | . . 93 597 607 . Guns 336 | . . 33 207 96 . Cannons 961 | . . 60 390 511 . Explosions . | . . . . . . Melee . | . . . . . . Ramming . | . . . . . . Kinetic 336 | . . 33 207 96 . Thermal 961 | . . 60 390 511 . Explosive . | . . . . . . Electromagnetic . | . . . . . . Impact . | . . . . . . Slashing . | . . . . . . Piercing . | . . . . . . Highest Corruption . | . . . . . . Average Corruption . | . . . . . . Corruption Purged . | . . . . . . Corruption Blocked . | . . . . . . Overload Shots . | . . . . . . Overflow Damage 17 | . . . 1 16 . Projectiles 17 | . . . 1 16 . Explosions . | . . . . . . Melee . | . . . . . . Knockbacks . | . . . . . . Impact . | . . . . . . Kinetic . | . . . . . . Secondary . | . . . . . . Self-Inflicted Damage . | . . . . . . Shots . | . . . . . . Rammed . | . . . . . . Targets Rammed . | . . . . . . Kicked . | . . . . . . Crushed . | . . . . . . Highest Temperature 243 | . . 115 184 243 . Average Temperature 80 | . . 53 71 92 . Received Heat Transfer 495 | . . . 99 396 . Siege Activations . | . . . . . . Robots Corrupted . | . . . . . . Combat Hostiles . | . . . . . . Parts Fried . | . . . . . . Impact Corruptions . | . . . . . . Robots Melted . | . . . . . . Combat Hostiles . | . . . . . . Parts Melted . | . . . . . . Heat Transferred 1739 | . . 111 703 925 . Parts Sabotaged . | . . . . . . Parts Stolen . | . . . . . . Parts Stripped . | . . . . . . Power Chain Reactions . | . . . . . . Alert | -11 -10 -10 -9 -8 -7 ------- Run | Yrd Mat Min Mat Mat Fac Peak Influence 388 | . . 70 272 388 150 Initial 150 | . . . 22 97 150 Average 189 | . . 43 158 310 150 Maximum Alert Level 1 | . . . 1 1 . Low Security (%) 53 | 100 100 100 54 21 100 Level 1 46 | . . . 45 78 . Level 2 . | . . . . . . Level 3 . | . . . . . . Level 4 . | . . . . . . Level 5 . | . . . . . . High Security . | . . . . . . Max Security . | . . . . . . Squads Dispatched 3 | . . . . 3 . Investigation 1 | . . . . 1 . Extermination . | . . . . . . Reinforcement 1 | . . . . 1 . Assault 1 | . . . . 1 . Garrison . | . . . . . . Intercept . | . . . . . . Searches Triggered . | . . . . . . Construction Impeded . | . . . . . . Haulers Reinforced . | . . . . . . Active Scanning Responses . | . . . . . . Cargo Convoy Interrupts . | . . . . . . Stealth | -11 -10 -10 -9 -8 -7 --------- Run | Yrd Mat Min Mat Mat Fac Distress Signals . | . . . . . . Communications Jammed . | . . . . . . Distress Signals . | . . . . . . Times Spotted 20 | . . 3 11 6 . Peak Tracking Total 6 | . . 2 6 3 . Tactical Retreats . | . . . . . . Traps | -11 -10 -10 -9 -8 -7 ------- Run | Yrd Mat Min Mat Mat Fac Traps Triggered 1 | . . . . 1 . Indirectly . | . . . . . . Trap Hack Attempts . | . . . . . . Triggered . | . . . . . . Disarmed . | . . . . . . Reprogrammed . | . . . . . . Reused . | . . . . . . Traps Extracted . | . . . . . . Installed . | . . . . . . Triggered . | . . . . . . Machines | -11 -10 -10 -9 -8 -7 ---------- Run | Yrd Mat Min Mat Mat Fac Machines Disabled 2 | . . . . 2 . Max in Single Turn 1 | . . . . 1 . Garrison Access 1 | . . . . 1 . Machines Repaired . | . . . . . . Machines Dismantled . | . . . . . . Machines Sabotaged . | . . . . . . Overloaded Fab Kills . | . . . . . . Hacking | -11 -10 -10 -9 -8 -7 --------- Run | Yrd Mat Min Mat Mat Fac Machines Accessed . | . . . . . . Terminals . | . . . . . . Fabricators . | . . . . . . Repair Stations . | . . . . . . Recycling Units . | . . . . . . Scanalyzers . | . . . . . . Garrison Access . | . . . . . . Total Hacks . | . . . . . . Successful . | . . . . . . Failed . | . . . . . . Catastrophic . | . . . . . . Database Lockouts . | . . . . . . Manual . | . . . . . . Terminals . | . . . . . . Fabricators . | . . . . . . Repair Stations . | . . . . . . Recycling Units . | . . . . . . Scanalyzers . | . . . . . . Garrison Access . | . . . . . . Terminal Hacks . | . . . . . . Fabricator Hacks . | . . . . . . Repair Station Hacks . | . . . . . . Recycling Unit Hacks . | . . . . . . Scanalyzer . | . . . . . . Garrison Access Hacks . | . . . . . . Unauthorized Hacks . | . . . . . . Terminals . | . . . . . . Fabricators . | . . . . . . Repair Stations . | . . . . . . Recycling Units . | . . . . . . Scanalyzers . | . . . . . . Garrison Access . | . . . . . . Data Cores Recovered . | . . . . . . Used . | . . . . . . Hacking Detections . | . . . . . . Full Trace Events . | . . . . . . Feedback Events . | . . . . . . Feedback Blocked . | . . . . . . Robot Schematics Acquired . | . . . . . . Robots Built . | . . . . . . Authchips . | . . . . . . Time . | . . . . . . Total Robot Build Rating . | . . . . . . Part Schematics Acquired . | . . . . . . Parts Built . | . . . . . . Authchips . | . . . . . . Time . | . . . . . . Total Part Build Rating . | . . . . . . Parts Repaired . | . . . . . . Time . | . . . . . . Parts Recycled . | . . . . . . Recycled Matter . | . . . . . . Retrieved Matter . | . . . . . . Retrieved Components . | . . . . . . Parts Scanalyzed . | . . . . . . Part Schematics Acquired . | . . . . . . Parts Damaged . | . . . . . . Bothacking | -11 -10 -10 -9 -8 -7 ------------ Run | Yrd Mat Min Mat Mat Fac Used RIF Installer . | . . . . . . Robots Hacked . | . . . . . . Non-combat . | . . . . . . Combat . | . . . . . . Robot Hacks Applied . | . . . . . . Relay Couplers Released 1 | . . . . 1 . Machine Destruction 1 | . . . . 1 . Fabnet Peak Effective % . | . . . . . . Robots Rewired . | . . . . . . Allies Hacked . | . . . . . . Hacks Repelled . | . . . . . . Allies | -11 -10 -10 -9 -8 -7 -------- Run | Yrd Mat Min Mat Mat Fac Total Allies . | . . . . . . Largest Group . | . . . . . . Highest-Rated Group . | . . . . . . Highest-Rated Ally . | . . . . . . Total Orders . | . . . . . . Ally Attacks . | . . . . . . Total Damage . | . . . . . . Kills . | . . . . . . Allies Corrupted . | . . . . . . Allies Melted . | . . . . . . Intel | -11 -10 -10 -9 -8 -7 ------- Run | Yrd Mat Min Mat Mat Fac Robot Analysis Total . | . . . . . . Derelict Logs Recovered . | . . . . . . Drone Launches . | . . . . . . Drone Recoveries . | . . . . . . Exploration | -11 -10 -10 -9 -8 -7 ------------- Run | Yrd Mat Min Mat Mat Fac Turns Passed 783 | 54 40 103 232 334 20 Spaces Moved 466 | 40 35 89 132 158 12 Core 20 | 18 . . 2 . . Treads 211 | . . . 41 158 12 Legs . | . . . . . . Wheels 235 | 22 35 89 89 . . Hover . | . . . . . . Flight . | . . . . . . Fastest Speed 50 | 50 100 100 100 160 160 Average Speed 127 | 90 100 100 122 160 160 Slowest Speed 350 | 100 100 100 350 160 160 Overloaded Moves . | . . . . . . Propulsion Burnouts . | . . . . . . Robots Hopped . | . . . . . . Cave-ins Triggered . | . . . . . . Exploration Rate (%) 13 | 4 12 28 18 18 1 Regions Visited 5 Branch Regions 1 Pre-discovered Areas . | . . . . . . Known Exits Taken . | . . . . . . Unknown Exits Taken 5 | 1 1 1 1 1 . Scrap Searched . | . . . . . . Spaces Dug . | . . . . . . Terrain Destroyed . | . . . . . . Melee . | . . . . . . Projectile . | . . . . . . AOE . | . . . . . . Terrain Rammed . | . . . . . . Walls Destroyed . | . . . . . . Machines Disabled . | . . . . . . Actions | -11 -10 -10 -9 -8 -7 --------- Run | Yrd Mat Min Mat Mat Fac Total 553 | 56 39 93 159 194 12 Wait 6 | 3 . . . 3 . Move 461 | 39 34 88 131 157 12 Hop . | . . . . . . Pick Up 16 | 8 4 . . 4 . Fast Attach 6 | 2 . . 3 1 . Attach 8 | 4 . . . 4 . Detach . | . . . . . . Swap 4 | . 1 . 2 1 . Drop 3 | . . . 2 1 . Fire 49 | . . 5 21 23 . Melee . | . . . . . . Ram . | . . . . . . Kick . | . . . . . . Crush . | . . . . . . Escape Stasis . | . . . . . . Rewire . | . . . . . . Trap . | . . . . . . Miscellaneous . | . . . . . . Route ------- -11/Scrapyard -10/Materials -10/Mines -9/Materials -8/Materials -7/Factory History --------- Turn | Location | Event 19 | -11/Scrapyard | Discovered new exit (range 15) 55 | -11/Scrapyard | Entered Materials 90 | -10/Materials | Discovered new exit (range 6) 95 | -10/Materials | Entered Mines 97 | -10/Mines | Met a Derelict bent on vengeance 185 | -10/Mines | Discovered new exit (range 14) 198 | -10/Mines | Entered Materials 198 | -9/Materials | Evolved 2 slots: Power x1, Utility x1 305 | -9/Materials | Build established: Mutant 408 | -9/Materials | Discovered new exit (range 12) 430 | -9/Materials | Entered another Materials area 430 | -8/Materials | Evolved 2 slots: Propulsion x1, Weapon x1 655 | -8/Materials | Discovered new exit (range 16) 764 | -8/Materials | Entered Factory 764 | -7/Factory | Evolved 2 slots: Propulsion x1, Utility x1 784 | -7/Factory | Self-destructed Last Messages --------------- 00710_ R-06 Scavenger collects Weight Redist. System. 00711_ K-01 Serf collects debris. 00719_ Destroyed Tractor Beam. 00719_ Destroyed Com. Wheel. 00722_ R-06 Scavenger destroyed. 00722_ K-01 Serf collects debris. 00728_ Acquired 20 matter. 00730_ K-01 Serf collects debris. 00731_ Acquired Lgt. Treads. 00733_ K-01 Serf collects debris. 00739_ R-06 Scavenger collects Weight Redist. System. 00742_ R-06 Scavenger collects Ion Engine. 00746_ R-06 Scavenger collects Prototype Engine. PARAMETERS=PROPULSION+1,UTILITY+1 LOCATION=UNKNOWN GOAL=ESCAPE 00782_ K-01 Serf pushes Y-54 Guardian. Map ----- +----------------------------------------------------+ | ?????????????????????????????????????????????????? | | ?????????????????????????????????????????????????? | | ?????????????????????????????????????????????????? | | ?????????????????????????????????????????????????? | | ?????????????????????????????????????????????????? | | ?????????????????????????????????????????????????? | | ?????????????????????????????????????????????????? | | ?????????????????????????????????????????????????? | | ?????????????????????????????????????????????????? | | ?????????????????????????????????????????????????? | | ?????????????????????????????????????????????????? | | ?????????????????????????????????????????????????? | | ?????????????????????????????????????????????????? | | ?????????????????????????????????????????????????? | | ?????????????????????????????????????????????????? | | ???????????????????#+?#######????????????????????? | | ???????????????????# #????????????????????? | | ???????????????????# [#????????????????????? | | ???????????????????# === #????????????????????? | | ???????????????????# === #????????????????????? | | ???????????????????# === ] #????????????????????? | | ???????????????????# #????????????????????? | | ???????????????????# " " #????????#######?????? | | ?????????????????????""G"" #######? ??????? | | ??????????????????????? # #? """ ??????? | | ??????????????????+######@### # """ ??????? | | ??????????????# # """ #?????? | | ??????????????# + #?????? | | ??????????????+ # """ #?????? | | ??????????????# # """ ??????? | | ??????????????# #?! """ ??????? | | ??????????????# ########? ??????? | | ??????????????# #?????????#######?????? | | ????????????? #?????????????????????? | | ????????????? Yk +?????????????????????? | | ?????????????? #?????????????????????? | | ?????????????? #?????????????????????? | | ??????????????? #?????????????????????? | | ?????????????????#+########??????????????????????? | | ?????????????????????????????????????????????????? | | ?????????????????????????????????????????????????? | | ?????????????????????????????????????????????????? | | ?????????????????????????????????????????????????? | | ?????????????????????????????????????????????????? | | ?????????????????????????????????????????????????? | | ?????????????????????????????????????????????????? | | ?????????????????????????????????????????????????? | | ?????????????????????????????????????????????????? | | ?????????????????????????????????????????????????? | | | +----------------------------------------------------+ Best States ------------- Heat Dissipation 48 Energy Generation 19 Energy Capacity 400 Matter Stores 300 Matter Capacity 300 Sight Range 16 Terrain Scan Density 10 Resistance: KI 20 Resistance: TH 20 Resistance: EX 20 Resistance: EM 20 Resistance: I 20 Resistance: S 20 Resistance: P 20 Evasion (%) 50 Targeting Accuracy 6 Recoil Reduction 3 Offensive Hacking 10 Item Schematics ----------------- None Robot Schematics ------------------ None Fabricated ------------ Nothing Alien Tech Used ----------------- None Achievements -------------- None Challenges ------------ None Game ------ Seed PlasmaNetworkMount Manual? 0 Play Time 00:13:22 Cumulative 31.9 hours Start 2024.03.07 @ 16:25:59 End 2024.03.09 @ 15:31:43 Sessions 11 Manual Loads 0 Difficulty Adventurer Special Mode None Game No. 91 Rogue 83 Adventurer 8 Explorer 0 Win Type - Total 0 Types 0/0/0/0/0/0/0/0/0 Lore% 19 Gallery% 29 Achievement% 23 Wizard Run 0 Options --------- Layout 1 ASCII 0 Keyboard 0 Movement Mouse Keybinds 0 Fullscreen 1 Font 24/Smallcaps Map View 50x35 Zoom Use 0% Tactical HUD 1 Map Filters NONE Filters NONE Steam 1 RUN: aad6ac8a-368c-41d2-abcc-7ee9a2fe719c